[Event "Rapid Shavuot-A 2023"]
[Site "Ramat Gan"]
[Date "2023.05.25"]
[Round "1.12"]
[White "Iliaguev, Nisim"]
[Black "Hasson Shreger, Shalev"]
[Result "1/2-1/2"]
[ECO "A22"]
[WhiteElo "2402"]
[BlackElo "1899"]
[Annotator "TA"]
[PlyCount "91"]
[EventDate "2023.05.19"]
[EventType "swiss"]
[EventCountry "ISR"]
[SourceTitle "playchess.com"]
[Source "ChessBase"]
[SourceQuality "1"]
[TimeControl "900+5"]

{[%evp 9,91,0,4,-18,-30,-30,-28,-33,-37,-37,-29,-39,-38,-69,-20,-18,-10,-15,0,-36,2,3,5,9,33,47,43,52,95,106,115,58,63,0,20,36,31,12,33,34,41,41,109,57,48,26,130,23,60,39,81,0,0,0,0,0,0,0,0,0,16,0,0,-13,0,0,0,0,0,0,10,0,0,0,0,-7,0,-158,-4,-4,0,-158,0,-4]} 1. c4 {[%emt 0:00:02]} e5 {[%emt 0:00:01]} 2. g3 {[%emt 0:00:02]} Nf6 {[%emt 0:00:08]} 3. Bg2 {[%emt 0:00:01]} c6 {[%emt 0:00:06]} 4. Nc3 {[%emt 0:00:02]} Bb4 {[%emt 0:00:16]} 5. d3 {[%emt 0:00:32]} O-O {[%emt 0:00:09]} 6. a3 {[%emt 0:00:16] A22: English Opening: 1...e5 2 Nc3 Nf6.} (6. Nf3 $5 {[%cal Rf3e5]}) 6... Bxc3+ {[%emt 0:00:02]} 7. bxc3 {[%emt 0:00:01]} Re8 {[%emt 0:00:15] [#]} 8. Nf3 $146 {[%emt 0:00:43] Black has an edge.} ({Predecessor:} 8. Bg5 h6 9. Bxf6 Qxf6 10. e4 d5 11. cxd5 cxd5 12. Qf3 Qg6 13. Ne2 Bg4 14. Qe3 {1-0 Tokmantsev,I (1918)-Maslo,S (1687) Rubinstein Memorial-C 55th 2019 (6)}) 8... e4 9. dxe4 {[%emt 0:00:01]} Nxe4 {[%emt 0:00:35]} 10. Qc2 {[%emt 0:00:15]} d6 {[%emt 0:00:08]} 11. O-O {[%emt 0:00:09]} Na6 {[%emt 0:14:20]} (11... Nd7 $15 {is superior.}) 12. Nd4 {[%emt 0:00:38]} Nac5 {[%emt 0:00:00]} 13. f3 {[%emt 0:01:01]} Nf6 {[%emt 0:00:00]} 14. e4 {[%emt 0:00:10]} d5 {[%emt 0:00:00]} (14... Nfd7 $5 {[%cal Rd7e5]}) 15. cxd5 {[%emt 0:00:23]} cxd5 {[%emt 0:00:00]} 16. Bg5 {[%emt 0:00:32]} Ne6 {[%emt 0:00:00]} (16... Re5 $5 {[%cal Re5g5]} 17. Bf4 Re8 $14) 17. Nxe6 {[%emt 0:00:56]} Rxe6 {[%emt 0:00:00]} 18. Rad1 {[%emt 0:00:49]} (18. Rfd1 {simplifies} h6 19. Bxf6 Qxf6 20. Rxd5 Rb6 21. f4) 18... Qb6+ {[%emt 0:00:00]} 19. Qf2 {[%emt 0:00:59] White is more active.} Bd7 {[%emt 0:00:00]} 20. exd5 {[%emt 0:01:25]} ({White should play} 20. c4 $1 $16) 20... Re2 $14 {[%emt 0:00:00][%mdl 64] Pin} 21. Qd4 {[%emt 0:00:59]} (21. Qxb6 $14 axb6 22. c4) 21... Qb2 {[%emt 0:00:00]} 22. Rd2 {[%emt 0:00:42]} Rxd2 {[%emt 0:00:00]} 23. Bxd2 {[%emt 0:00:04]} Qxa3 {[%emt 0:00:00]} 24. c4 {[%emt 0:00:54]} Rc8 {[%emt 0:00:00]} 25. Rc1 {[%emt 0:00:29]} b6 {[%emt 0:00:00]} (25... a5 $14) 26. h3 {[%emt 0:01:26]} (26. Kf2 $16) 26... h6 {[%emt 0:00:00]} 27. Kh2 {[%emt 0:00:01]} Qa4 {[%emt 0:00:00] [#]} (27... Re8 $11 {keeps the balance.}) 28. Be3 {[%emt 0:01:58]} (28. Bxh6 $1 $16 {[%cal Oh3h4] h4! would be deadly.} Re8 29. Bf4) 28... Qb4 {[%emt 0:01:08]} 29. Bxh6 {[%emt 0:00:28][%mdl 64] Deflection} b5 {[%emt 0:00:14] [#]} 30. Bg5 {[%emt 0:00:46]} (30. Bd2 $1 $16 {[%cal Rd2b4]} Rxc4 31. Rxc4 (31. Qxa7 $2 {too greedy.} Qxd2 32. Qb8+ Kh7 $19) 31... Qxc4 32. Qxc4 (32. Qxa7 Qxd5 33. Qb8+ Ne8 $11) 32... bxc4 33. f4) 30... Rxc4 $11 {[%emt 0:00:13]} 31. Rxc4 Qxc4 {[%emt 0:00:00]} 32. Qxa7 {[%emt 0:00:25] aiming for Bxf6.} Qxd5 {[%emt 0:00:00]} 33. Qb8+ {[%emt 0:00:20]} Kh7 {[%emt 0:00:00]} 34. Qf4 {[%emt 0:00:19]} Qf5 {[%emt 0:00:07]} 35. Qh4+ {[%emt 0:00:02]} (35. Qxf5+ {simplifies} Bxf5 36. g4 Be6 37. Bd2) 35... Kg8 {[%emt 0:00:06]} 36. Be3 {[%emt 0:00:06]} Qe6 {[%emt 0:00:04]} 37. Bd4 {[%emt 0:00:05]} Qd6 {[%emt 0:00:08]} 38. Bc3 {[%emt 0:00:07]} Nd5 {[%emt 0:00:01]} 39. Bd2 {[%emt 0:00:03]} (39. Qd4 $5 f6 $8 40. Bb4 $11) 39... b4 {[%emt 0:00:02]} 40. Qd8+ {[%emt 0:00:03]} Kh7 {[%emt 0:00:02]} 41. f4 {[%emt 0:00:01]} Nc3 {[%emt 0:00:05] Repels Be4+} (41... Nf6 $5 42. Be1 $8 b3 $11) 42. Be3 {[%emt 0:00:14]} b3 {[%emt 0:00:12] Threatens to win with ...b2.} 43. Qh4+ $2 {[%emt 0:00:01]} ({White has to play} 43. Bc1 $11 Na2 44. Bb2 (44. Be4+ g6 $11)) 43... Kg8 $2 {[%emt 0:00:00]} (43... Qh6 $17 {And now ...Qxh4 would win.} 44. Qxh6+ Kxh6) 44. Qd8+ Kh7 $2 (44... Qf8 $11 45. Qxd7 b2) 45. Qh4+ $17 {[%emt 0:00:12]} Kg8 $2 {[%emt 0:00:10]} ({Black should try} 45... Qh6 $17 46. Qxh6+ Kxh6) 46. Qd8+ {[%emt 0:00:13] Weighted Error Value: White=0.22 (precise) /Black=0.25 (precise)} 1/2-1/2

[Event "Rapid Shavuot-A 2023"]
[Site "Ramat Gan"]
[Date "2023.05.25"]
[Round "1.13"]
[White "Meirovich, Ilay"]
[Black "Rozen, Eytan"]
[Result "0-1"]
[ECO "B45"]
[WhiteElo "1872"]
[BlackElo "2417"]
[Annotator "TA"]
[PlyCount "144"]
[EventDate "2023.05.19"]
[EventType "swiss"]
[EventCountry "ISR"]
[SourceTitle "playchess.com"]
[Source "ChessBase"]
[SourceQuality "1"]
[TimeControl "900+5"]

{[%evp 12,144,9,0,0,0,0,0,0,2,6,0,14,12,4,-2,0,-9,24,33,52,58,52,40,67,78,74,81,70,50,47,51,50,23,23,23,32,0,0,0,0,0,65,0,17,15,58,10,58,37,110,120,117,114,144,145,133,82,82,0,0,0,0,0,0,0,0,-31,-28,-39,0,-132,-94,-98,0,0,0,-379,-355,-637,-615,-620,-567,-1473,-1337,-1261,-1300,-1115,-105,-308,-238,-5202,-5104,-5306,-5163,-5085,-5169,-4622,-2297,-5350,0,0,0,0,0,0,0,0,0,-95,-96,-95,0,-95,0,0,0,0,0,0,0,-29977,-29979,-29981,-29982,-29989,-29981,-29982,-29983,-29983,-29984,-29985,-29986,-29991,-29992]} 1. e4 {[%emt 0:00:05]} c5 {[%emt 0:00:05]} 2. Nf3 {[%emt 0:00:05]} e6 {[%emt 0:00:05]} 3. d4 {[%emt 0:00:05]} cxd4 4. Nxd4 {[%emt 0:00:05]} Nf6 {[%emt 0:00:10]} 5. Nc3 {[%emt 0:00:05]} Nc6 {[%emt 0:00:05]} 6. g3 {[%emt 0:00:05]} d5 {[%emt 0:00:05]} 7. Bg2 {[%emt 0:00:31]} Bc5 {[%emt 0:00:27] B45: Sicilian Four Knights.} 8. Nb3 {[%emt 0:00:34][%csl LRc5,LRd5][%cal Re4d5]} Bb4 {[%emt 0:00:05]} 9. O-O {[%emt 0:00:34][%cal Re4d5]} Bxc3 {[%emt 0:00:06] The position is equal.} 10. bxc3 {[%emt 0:00:05] exd5 is the strong threat.} O-O {[%emt 0:00:18]} 11. Bg5 {[%emt 0:00:26]} h6 {[%emt 0:00:42]} 12. exd5 {[%emt 0:00:39]} (12. Bxf6 {is more complex.} Qxf6 13. exd5 exd5 14. Qxd5 Qxc3 15. Qc5) 12... exd5 {[%emt 0:00:05]} 13. Bxf6 {[%emt 0:00:43]} Qxf6 {[%emt 0:00:05]} 14. Bxd5 {[%emt 0:00:23] [#]} Rd8 $146 {[%emt 0:00:15]} ({Predecessor:} 14... Qxc3 15. Qf3 Qxc2 16. Rfc1 Qf5 17. Bxc6 bxc6 18. Qxf5 Bxf5 19. Rxc6 Rfc8 {½-½ Fabry,R (2255)-Rzeszoto,R Tatry op Tatranska Lomnica 1997 (1)}) 15. Qf3 {[%emt 0:00:05]} Bf5 {[%emt 0:00:15]} 16. Bxc6 {[%emt 0:00:17]} bxc6 {[%emt 0:00:05]} 17. Nd4 {[%emt 0:00:09]} Bh3 {[%emt 0:00:17] Strongly threatening ...Qxf3.} 18. Qxf6 {[%emt 0:01:29]} gxf6 {[%emt 0:00:05]} 19. Rfd1 {[%emt 0:00:37]} c5 {[%emt 0:00:07]} 20. Nc6 {[%emt 0:00:34]} Re8 {[%emt 0:00:33]} 21. Re1 {[%emt 0:00:15]} Kg7 {[%emt 0:00:35]} 22. f4 {[%emt 0:00:51]} Rec8 {[%emt 0:00:20]} 23. Na5 {[%emt 0:02:39]} c4 {[%emt 0:00:46]} 24. Re4 {[%emt 0:00:47][%cal Oa1b1]} Be6 $1 {[%emt 0:00:05]} 25. Rb1 $36 {[%emt 0:00:54][%mdl 2048] White has good play.} Rc5 $1 {[%emt 0:00:14]} 26. Nb7 {[%emt 0:00:15]} Rc6 {[%emt 0:00:24]} (26... Rd5 $11) 27. Na5 {[%emt 0:00:12]} ({White should try} 27. Rd4 $14) 27... Rb6 {[%emt 0:01:09]} 28. Rb4 {[%emt 0:00:59]} (28. Rxb6 {simplifies} axb6 29. Nxc4 Bxc4 30. Rxc4 Rxa2 31. Rb4) 28... Rc8 {[%emt 0:00:05]} 29. a3 {[%emt 0:01:57]} (29. Nxc4 $2 Rxb4 30. cxb4 Bxc4 $19) (29. a4 $14) 29... Rc5 {[%emt 0:02:20]} (29... Ra6 $11 30. Nxc4 f5) 30. Nb7 {[%emt 0:00:47]} (30. Nxc4 Rxb4 31. cxb4 Rxc4 32. Rxc4 Bxc4 $15) 30... Rc7 {[%emt 0:00:05]} (30... Rcb5 $14 31. Rxb5 Rxb5) 31. Rxb6 $16 {[%emt 0:00:12]} axb6 {[%emt 0:00:05][%mdl 4096] Endgame KRB-KRN} 32. Nd6 {[%emt 0:00:05]} Rc5 {[%emt 0:00:19]} 33. Kf2 {[%emt 0:00:08]} Kf8 {[%emt 0:00:13]} 34. Ke3 {[%emt 0:00:08]} (34. f5 $142 Bxf5 35. Rxc4) 34... Ke7 {[%emt 0:00:05]} 35. f5 {[%emt 0:00:05]} ({Better is} 35. Rd4 $1 $16) 35... Kxd6 $11 {[%emt 0:00:05]} 36. fxe6 {[%emt 0:00:05]} fxe6 {[%emt 0:00:05] KR-KR} 37. Rd4+ {[%emt 0:00:05]} Ke7 {[%emt 0:00:05]} 38. Rh4 {[%emt 0:00:05]} h5 {[%emt 0:00:05]} 39. Kd4 {[%emt 0:00:05] Repels b5} Kf7 {[%emt 0:00:05]} 40. a4 {[%emt 0:00:05]} e5+ {[%emt 0:00:05]} 41. Ke3 {[%emt 0:00:05]} (41. Ke4 $11) 41... Kg6 $17 {[%emt 0:00:05] Hoping for ...f5.} 42. g4 {[%emt 0:00:05] [#]} hxg4 {[%emt 0:00:05]} (42... Kg5 $1 $17 {[%cal Rg5h4]} 43. Rxh5+ Kxg4) 43. Rxg4+ $11 {[%emt 0:00:05]} Kf5 {[%emt 0:00:05]} 44. Rg7 {[%emt 0:00:05][%mdl 8192]} (44. h3 $11 {and White stays safe.}) 44... Ra5 $19 {[%emt 0:00:05]} 45. Rb7 $2 {[%emt 0:00:05]} (45. h4 Rxa4 46. h5) 45... Rxa4 {[%emt 0:00:05]} 46. Rxb6 {[%emt 0:00:05]} Ra2 {[%emt 0:00:05]} 47. Rb4 {[%emt 0:00:15]} Rxc2 {[%emt 0:00:05]} 48. Rxc4 {[%emt 0:00:05]} Rxh2 {[%emt 0:00:05] White must now prevent ...Rh3+.} 49. Rc8 {[%emt 0:00:00]} Ke6 $2 {[%emt 0:00:05]} (49... Rh3+ $19 {and Black stays clearly on top.} 50. Kd2 Ke4) 50. c4 $2 {[%emt 0:00:04]} (50. Rc6+ $17 Kf5 51. c4) 50... f5 {[%emt 0:00:05][%cal Bf6f5,Bf5f4][%mdl 32]} 51. c5 $2 {[%emt 0:00:05]} (51. Rc6+ Ke7 52. c5) 51... f4+ {[%emt 0:00:05]} 52. Kf3 {[%emt 0:00:05]} Rh3+ {[%emt 0:00:05]} 53. Ke2 {[%emt 0:00:05]} e4 {[%emt 0:00:05] aiming for ...Rh2+.} 54. c6 {[%emt 0:00:05]} Rh2+ {[%emt 0:00:05]} 55. Kf1 {[%emt 0:00:05]} e3 $2 {[%emt 0:00:05]} (55... Kd6 $19 {( -> ...e3)} 56. Rd8+ Kxc6) 56. Rf8 $11 {[%emt 0:00:05][%cal Oc6c7]} Rf2+ {[%emt 0:00:05]} 57. Ke1 {[%emt 0:00:05] White threatens c7 and mate.} Kd6 {[%emt 0:00:11]} 58. Rf6+ {[%emt 0:00:05]} Kc7 {[%emt 0:00:05]} 59. Re6 $1 {[%emt 0:00:05]} Rc2 {[%emt 0:00:16]} 60. Rf6 {[%emt 0:00:05]} (60. Re4 $1 $11) 60... Rc4 {[%emt 0:00:05] Black is more active.} (60... Rxc6 $6 61. Rxf4 Kd6 62. Rf6+ Kd7 63. Rxc6 Kxc6 64. Kf1 $11) (60... Rf2 $6 61. Re6 $11) 61. Ke2 {[%emt 0:00:05]} Kd8 {[%emt 0:00:05]} (61... Rxc6 $6 62. Rxf4 Kd6 63. Kxe3 $11) (61... Rc2+ $2 62. Kf1 Rc4 63. Kg2 $19) (61... Rd4 $17 62. Ke1 Re4) 62. Kf3 {[%emt 0:00:05] [#]} (62. Rf7 $2 Ke8 63. Rf5 Ke7 $19) (62. Rf5 $11 {keeps the balance.}) 62... Ke7 {[%emt 0:00:05]} ({Wrong is} 62... Kc7 $2 63. Rg6 $19) (62... Re4 $1 $17 {Threatens to win with ...e2.} 63. Ke2 (63. Kxe4 $2 {is the wrong capture.} e2 $19) 63... Kc7) 63. Rf5 {[%emt 0:00:05]} Ke6 {[%emt 0:00:07]} 64. Rf8 $1 {[%emt 0:00:05]} Ke5 {[%emt 0:00:13]} 65. Rf7 {[%emt 0:00:05]} Rc2 {[%emt 0:00:11]} 66. Re7+ $2 {[%emt 0:00:05][%mdl 8192]} (66. c7 $11) 66... Kd6 {[%emt 0:00:05] Black mates.} 67. Rf7 {[%emt 0:00:05]} Rf2+ {[%emt 0:00:05]} ({Inferior is} 67... Kxc6 68. Rxf4 Rc3 69. Rf5 $11) 68. Ke4 {[%emt 0:00:05]} Kxc6 {[%emt 0:00:05]} 69. Kd3 {[%emt 0:00:05]} e2 {[%emt 0:00:08]} 70. Kd2 {[%emt 0:00:05]} f3 {[%emt 0:00:05]} 71. Re7 {[%emt 0:00:05]} Rf1 {[%emt 0:00:05]} 72. Re3 {[%emt 0:00:05]} Rd1+ {[%emt 0:00:05] Weighted Error Value: White=0.65/Black=0.30} 0-1

[Event "Rapid Shavuot-A 2023"]
[Site "Ramat Gan"]
[Date "2023.05.25"]
[Round "1.15"]
[White "Shilon Rahav, Eliran"]
[Black "Levitan, Tal"]
[Result "0-1"]
[ECO "C84"]
[WhiteElo "1840"]
[BlackElo "2328"]
[Annotator "TA"]
[PlyCount "42"]
[EventDate "2023.05.19"]
[EventType "swiss"]
[EventCountry "ISR"]
[SourceTitle "playchess.com"]
[Source "ChessBase"]
[SourceQuality "1"]
[TimeControl "900+5"]

{[%evp 12,42,45,25,112,-97,0,-14,1,-27,4,-10,0,0,0,0,0,0,0,-13,14,-6,26,20,12,6,135,-15,-19,-85,0,-188,3]} 1. e4 {[%emt 0:12:11]} e5 {[%emt 0:12:07]} 2. Nf3 {[%emt 0:00:04]} Nc6 {[%emt 0:00:05]} 3. Bb5 {[%emt 0:00:04]} a6 {[%emt 0:00:05]} 4. Ba4 {[%emt 0:00:04]} Nf6 {[%emt 0:00:06]} 5. O-O {[%emt 0:03:07]} b5 6. Bb3 {[%emt 0:00:00]} Be7 {[%emt 0:00:07] 6...Bc5 deserves study.} 7. d4 {[%emt 0:00:00]} exd4 {[#] C84: Closed Ruy Lopez: Unusual White 6th moves.} (7... d6 $11) 8. Nxd4 $2 {[%emt 0:00:00]} (8. e5 $1 $16 {[%cal Re5f6]} Ng4 9. Re1) 8... O-O {[%emt 0:00:12] [#]} (8... Nxd4 $17 9. Qxd4 c5) 9. Nxc6 $146 {[%emt 0:00:00]} ({Predecessor:} 9. Nf5 d6 10. Nxe7+ Qxe7 11. Re1 Na5 12. Nc3 Nxb3 13. axb3 Bb7 14. Bg5 Rfe8 15. Qf3 {0-1 Ortiz Roche,J-Morenilla Rocher,C Autonomico-chT 2003}) 9... dxc6 {[%emt 0:03:08] The position is equal.} 10. e5 {[%emt 0:00:00]} Nd5 {[%emt 0:00:00]} 11. Nc3 {[%emt 0:00:00]} Be6 {[%emt 0:00:00]} 12. Bd2 {[%emt 0:00:00]} Nxc3 {[%emt 0:00:00]} 13. Bxc3 {[%emt 0:00:00]} c5 {[%emt 0:00:00] ...c4 would be deadly.} 14. Bxe6 {[%emt 0:00:00]} fxe6 {[%emt 0:00:00]} 15. a3 {[%emt 0:00:00]} c4 {[%emt 0:00:00]} 16. Qe2 {[%emt 0:00:00]} (16. Qg4 {is interesting.} Qd5 17. Rfd1 Qc6 18. Bb4) 16... c5 {[%emt 0:00:00][%cal Bc7c5,Bc5b4][%mdl 32]} 17. Rad1 {[%emt 0:00:00]} Qc7 {[%emt 0:00:00]} 18. f4 {[%emt 0:00:00]} b4 {[%emt 0:00:00] [#]} (18... Rfd8 $11) 19. axb4 {[%emt 0:00:00]} ({White should play} 19. Qxc4 $1 $16 Qc8 20. Be1 (20. axb4 cxb4 21. Qxc8 Raxc8 $11)) 19... cxb4 $11 {[%emt 0:00:00]} 20. Be1 {[%emt 0:00:00]} (20. Bd4 $11 {remains equal.}) 20... Bc5+ {[%emt 0:00:00]} (20... a5 $17) 21. Bf2 $2 {[%emt 0:00:00]} (21. Kh1 $11 {and White stays safe.}) 21... Rab8 $2 {[%emt 0:00:00][%mdl 32768] Weighted Error Value: White=0.66/Black=0.51. Loss on time!?} (21... Rxf4 $19 22. Bxc5 Qxc5+ 23. Kh1 Rxf1+ 24. Rxf1 Rf8 25. Rxf8+ Kxf8 26. Qf3+ Kg8) 0-1

[Event "Rapid Shavuot-A 2023"]
[Site "Ramat Gan"]
[Date "2023.05.25"]
[Round "1.16"]
[White "Zemach, Nadav"]
[Black "Michaeli, Omri"]
[Result "1-0"]
[ECO "E00"]
[WhiteElo "2383"]
[BlackElo "1874"]
[Annotator "TA"]
[PlyCount "51"]
[EventDate "2023.05.19"]
[EventType "swiss"]
[EventCountry "ISR"]
[SourceTitle "playchess.com"]
[Source "ChessBase"]
[SourceQuality "1"]
[TimeControl "900+5"]

{[%evp 13,51,31,28,12,26,26,21,28,20,12,21,13,31,18,42,38,45,46,43,25,33,25,22,17,27,0,0,0,136,117,136,136,1014,1005,982,982,957,941,29997,29998]} 1. d4 {[%emt 0:00:02]} Nf6 {[%emt 0:00:02]} 2. c4 {[%emt 0:00:02]} e6 {[%emt 0:00:02]} 3. g3 {[%emt 0:00:01]} Bb4+ {[%emt 0:00:07]} 4. Nd2 {[%emt 0:00:03]} c5 {[%emt 0:00:03]} 5. a3 {[%emt 0:00:02]} Bxd2+ {[%emt 0:00:02]} 6. Qxd2 {[%emt 0:00:02]} cxd4 {[%emt 0:00:01]} 7. Nf3 {[%emt 0:00:01]} b6 {[%emt 0:00:16]} 8. Bg2 {[%emt 0:00:06] E00: Catalan Bogo-Indian (3 g3 Bb4+).} Bb7 {[%emt 0:00:02]} 9. Qxd4 {[%emt 0:00:04]} Nc6 {[%emt 0:00:41]} 10. Qf4 {[%emt 0:00:01] The position is equal.} O-O {[%emt 0:00:26]} 11. O-O {[%emt 0:00:07]} d5 {[%emt 0:00:08]} 12. b4 {[%emt 0:00:30]} Ne7 {[%emt 0:01:16] [#]} 13. Ne5 $146 {[%emt 0:01:26]} ({Predecessor:} 13. Rd1 Rc8 14. Ne5 Qc7 15. Bb2 dxc4 16. Bxb7 Qxb7 17. Nxc4 Qe4 18. Qxe4 Nxe4 19. Rac1 {1-0 Oparin,G (2652)-Martinez Alcantara,J (2620) Speed Chess Super Swiss KO blitz 2020 (2.4)}) 13... Ng6 {[%emt 0:01:09]} 14. Nxg6 {[%emt 0:00:04]} hxg6 {[%emt 0:00:05]} 15. Bb2 {[%emt 0:00:04]} Qe7 {[%emt 0:01:53]} 16. Rfd1 {[%emt 0:01:44]} Rfd8 {[%emt 0:00:42]} 17. Rac1 {[%emt 0:02:18]} dxc4 {[%emt 0:01:11]} 18. Bxb7 {[%emt 0:01:26]} Qxb7 {[%emt 0:00:21] Black is weak on the dark squares} 19. Bxf6 {[%emt 0:02:38]} gxf6 {[%emt 0:00:11]} 20. Qxf6 {[%emt 0:00:02]} Rxd1+ {[%emt 0:01:16]} (20... Rd5 $11) 21. Rxd1 $11 {[%emt 0:00:02] And now Rd4 would win. KQR-KQR} Qe4 {[%emt 0:01:04] [#]} 22. Rd4 $1 {[%emt 0:00:50] Inhibits b5. White is more active.} ({Don't play} 22. Rd7 $6 Qb1+ 23. Kg2 Qe4+ 24. Kg1 Qb1+ 25. Kg2 Qe4+ 26. Kg1 $11) 22... Qxe2 {[%emt 0:02:05][%mdl 8192] Loses the game.} (22... Qf5 $16 23. Qxf5 exf5) 23. Rh4 $18 {[%emt 0:00:17][%csl Gf6][%cal Rh4h8]} Qd1+ {[%emt 0:00:42]} 24. Kg2 {[%emt 0:00:01][%csl Gf6][%cal Rh4h8]} Qd5+ {[%emt 0:00:02]} 25. f3 {[%emt 0:00:02][%csl Gf6][%cal Rh4h8]} Qd2+ {[%emt 0:00:38]} 26. Kh3 {[%emt 0:00:01] Weighted Error Value: White=0.05 (flawless) /Black=0.48} 1-0

[Event "Rapid Shavuot-A 2023"]
[Site "Ramat Gan"]
[Date "2023.05.25"]
[Round "1.17"]
[White "Shefer, Uri"]
[Black "Zemach, Roee"]
[Result "0-1"]
[ECO "E04"]
[WhiteElo "1881"]
[BlackElo "2261"]
[Annotator "TA"]
[PlyCount "50"]
[EventDate "2023.05.19"]
[EventType "swiss"]
[EventCountry "ISR"]
[SourceTitle "playchess.com"]
[Source "ChessBase"]
[SourceQuality "1"]
[TimeControl "900+5"]

{[%evp 13,50,-23,-13,-27,-27,-15,47,-23,0,0,8,0,14,30,21,11,10,12,27,0,17,-11,0,-458,-448,-425,-402,-911,-980,-996,-925,-985,-977,-1130,-1145,-29987,-29988,-29991,-29988]} 1. d4 {[%emt 0:15:10]} Nf6 {[%emt 0:15:10]} 2. c4 {[%emt 0:00:05]} e6 {[%emt 0:00:05]} 3. Nf3 d5 {[%emt 0:00:05]} 4. g3 {[%emt 0:00:10]} dxc4 {[%emt 0:00:05]} 5. Bg2 Nc6 {[%emt 0:00:05]} 6. O-O {[%emt 0:00:10]} Rb8 {[%emt 0:00:05]} 7. a4 {[%emt 0:00:05]} b6 $1 {[%emt 0:00:05]} 8. Ne5 {[%emt 0:00:05] E04: Open Catalan: 5 Nf3.} Nxe5 {[%emt 0:00:05]} ({Don't take} 8... Nxd4 9. Bc6+ Nxc6 10. Nxc6 Qxd1 11. Rxd1 $16) 9. dxe5 {[%emt 0:00:05]} Nd7 {[%emt 0:00:05] [#]} ({Black should try} 9... Qxd1 $11 10. Rxd1 Nd5) 10. Bc6 $146 {[%emt 0:00:05]} (10. Qd4 $14) ({Predecessor:} 10. Qd4 c5 11. Qc3 a6 12. Rd1 b5 13. axb5 axb5 14. Ra7 Qb6 15. Qa5 Qxa5 16. Rxa5 {1-0 Henk,M-Otte,H GER-ch29 V10 corr 1999}) 10... Bc5 {[%emt 0:00:05]} 11. Nd2 {[%emt 0:00:05]} c3 {[%emt 0:00:05]} 12. bxc3 {[%emt 0:00:05]} O-O {[%emt 0:00:05]} 13. Nf3 {[%emt 0:00:05]} Qe7 {[%emt 0:00:05]} 14. Bg5 {[%emt 0:00:05]} (14. a5 {simplifies} f6 15. axb6 Rxb6 16. Bxd7 Qxd7 17. Qxd7 Bxd7 18. exf6 gxf6 19. Ba3) 14... f6 {[%emt 0:00:05]} 15. exf6 {[%emt 0:00:05]} Nxf6 {[%emt 0:00:05]} 16. Qc2 {[%emt 0:00:05]} (16. Ne5 {simplifies} Qd6 17. Qxd6 Bxd6 18. Nc4) 16... e5 {[%emt 0:00:05]} 17. Rad1 {[%emt 0:00:05]} (17. Be4 $5 {[%cal Re4h7]}) 17... Bh3 {[%emt 0:00:05]} 18. Rfe1 $2 {[%emt 0:00:05][%mdl 8192] [#]} (18. Be4 $1 $11) 18... Bxf2+ $1 $19 {[%emt 0:00:05][%mdl 576] Decoy, Clearance} 19. Kxf2 {[%emt 0:00:05] Qb3+ is the strong threat.} Qc5+ {[%emt 0:00:05]} 20. e3 {[%emt 0:00:05]} (20. Rd4 $142 exd4 21. Qb3+ Kh8 22. Qb5 dxc3+ 23. Qxc5 bxc5 24. Rc1) 20... Qxc6 {[%emt 0:00:05]} 21. Qb3+ {[%emt 0:00:05]} Kh8 {[%emt 0:00:05] Hoping for ...Ne4+.} 22. Bxf6 {[%emt 0:00:05]} Qxf6 {[%emt 0:00:05]} 23. Qd5 {[%emt 0:00:05]} Bg4 {[%emt 0:00:05][%cal Bh3g4,Bg4f3,Bf3d5][%mdl 32]} 24. Rd2 {[%emt 0:00:05]} Bxf3 {[%emt 0:00:05]} 25. Qc4 {[%emt 0:00:05]} Bd5+ {[%emt 0:00:05] Excellently played by Zemach!   Weighted Error Value: White=0.97/Black=0.11 (very precise)} 0-1